bitfinex/quotes_SOLUSD_20250417
["timestamp","ask_amount","ask_price","bid_price","bid_amount"]
[1744868186058,19.17289573,132.67,132.62,19.17289573]
[1744868186258,19.17289573,132.67,132.63,19.17289573]
[1744868186423,19.17289573,132.66,132.62,19.17289573]
[1744868186641,19.17289573,132.67,132.62,19.17289573]
[1744868187044,19.17289573,132.65,132.6,19.17289573]
[1744868187238,7.53920386,132.64,132.59,19.17289573]
[1744868187480,26.71209959,132.64,132.59,19.17289573]
[1744868187644,19.17289573,132.63,132.59,19.17289573]
[1744868187840,7.53920386,132.64,132.57,18.64964886]
[1744868187841,19.17289573,132.61,132.57,19.17289573]
[1744868188076,19.17289573,132.63,132.58,19.17289573]
[1744868188943,26.71323655,132.62,132.57,19.17289573]
[1744868189142,28.38495621,132.61,132.57,28.38495621]
[1744868189339,28.38495621,132.61,132.55,44.64964886]
[1744868189340,28.38495621,132.61,132.56,28.38495621]
[1744868189543,28.38495621,132.6,132.55,28.38495621]
[1744868190465,28.38495621,132.61,132.56,28.38495621]
[1744868190649,28.38495621,132.6,132.56,28.38495621]
[1744868190846,7.54318473,132.57,132.54,0.063]
[1744868191368,28.38495621,132.6,132.55,28.38495621]
[1744868191872,35.92643433,132.6,132.55,28.38495621]
[1744868192246,28.38495621,132.59,132.55,28.38495621]
[1744868192870,35.92756146,132.59,132.55,28.38495621]
[1744868193243,35.92756146,132.59,132.54,0.063]
[1744868193447,35.92756146,132.59,132.54,28.44795621]
[1744868193746,7.54260525,132.59,132.55,28.38495621]
[1744868193958,35.92756146,132.59,132.55,28.38495621]
[1744868194469,35.92756146,132.59,132.54,28.44795621]
[1744868194967,28.38495621,132.58,132.54,28.44795621]
[1744868195458,28.38495621,132.58,132.54,0.063]
[1744868195655,28.38495621,132.58,132.54,28.44795621]
[1744868196356,35.92756146,132.59,132.54,28.44795621]
[1744868197267,35.92803429,132.58,132.54,28.44795621]
[1744868198168,7.54307808,132.58,132.54,28.44795621]
[1744868198360,36.61435621,132.61,132.56,28.38495621]
[1744868199168,35.92657171,132.6,132.56,28.38495621]
[1744868199368,35.92657171,132.6,132.55,28.38495621]
[1744868199560,35.92657171,132.6,132.54,7.60775744]
[1744868199759,7.5416155,132.6,132.56,28.38495621]
[1744868200867,44.15541719,132.61,132.57,28.38495621]
[1744868202259,15.77046098,132.61,132.57,28.38495621]
[1744868203166,82.8,132.62,132.59,28.38495621]
[1744868203473,7.53937882,132.64,132.6,28.38495621]
[1744868203852,7.5671215,132.68,132.63,28.38495621]
[1744868204079,0.03,132.68,132.65,28.38495621]
[1744868204274,0.03,132.68,132.67,28.38495621]
[1744868205163,0.03,132.68,132.66,28.38495621]
[1744868205462,0.03,132.68,132.65,28.38495621]
[1744868205975,0.03,132.68,132.66,28.38495621]
[1744868206174,0.03,132.68,132.67,28.38495621]
[1744868208674,0.03,132.68,132.67,80.85642726]
[1744868209176,0.03,132.68,132.67,71.64496796]
[1744868209385,0.03,132.68,132.67,26.0]
[1744868209678,0.03,132.68,132.67,19.17349691]
[1744868210071,0.03,132.68,132.66,19.17349691]
[1744868210987,0.03,132.68,132.67,19.17349691]
[1744868211575,0.03,132.68,132.66,19.17349691]
[1744868211766,0.03,132.68,132.65,45.17349691]
[1744868211965,0.03,132.68,132.65,19.17349691]
[1744868212978,0.03,132.68,132.63,69.9089898]
[1744868212979,0.03,132.68,132.64,18.64964886]
[1744868213282,0.03,132.68,132.65,19.17349691]
[1744868214879,0.03,132.68,132.67,19.17349691]
[1744868215053,0.03,132.68,132.66,19.17349691]
[1744868216078,0.03,132.68,132.64,18.64964886]
[1744868216079,0.03,132.68,132.65,19.17349691]
[1744868217278,0.03,132.68,132.64,18.64964886]
[1744868217279,0.03,132.68,132.67,19.17349691]
[1744868217480,0.03,132.68,132.65,19.17349691]
[1744868217674,19.20349691,132.68,132.63,19.17349691]
[1744868218060,19.17349691,132.67,132.62,19.17349691]
[1744868218376,19.17349691,132.66,132.62,19.17349691]
[1744868218769,26.7119825,132.66,132.62,19.17349691]
[1744868220584,19.17349691,132.63,132.54,121.4269078]
[1744868220788,19.17349691,132.63,132.58,19.17349691]
[1744868220974,7.54034082,132.62,132.58,19.17349691]
[1744868222574,26.71383773,132.62,132.57,19.17349691]
[1744868222789,7.5399153,132.63,132.59,19.17349691]
[1744868224190,26.71341221,132.63,132.58,19.17349691]
[1744868225590,7.53933162,132.64,132.61,19.17349691]
[1744868225967,7.53933162,132.64,132.6,19.17349691]
[1744868226174,19.17349691,132.62,132.58,19.17349691]
[1744868226674,19.17349691,132.62,132.55,44.64964886]
[1744868226675,19.17349691,132.62,132.57,19.17349691]
[1744868227172,7.54090943,132.61,132.57,19.17349691]
[1744868227487,7.54090943,132.61,132.58,19.17349691]
[1744868227878,1.5456,132.64,132.6,19.17349691]
[1744868228183,20.71909691,132.64,132.6,19.17349691]
[1744868228379,19.17349691,132.63,132.58,19.17349691]
[1744868228579,19.17349691,132.63,132.59,19.17349691]
[1744868228775,7.53884792,132.65,132.6,19.17349691]
[1744868229093,26.71234483,132.65,132.61,19.17349691]
[1744868230193,26.71234483,132.65,132.6,19.17349691]
[1744868230394,19.17349691,132.64,132.6,19.17349691]
[1744868230784,19.17349691,132.64,132.57,7.5431053]
[1744868230985,19.17349691,132.63,132.58,19.17349691]
[1744868231170,7.54090943,132.61,132.55,26.0]
[1744868231367,7.54090943,132.61,132.58,19.17349691]
[1744868232173,82.8,132.64,132.6,19.17349691]
[1744868232485,7.53940723,132.64,132.61,19.17349691]
[1744868232884,7.53870935,132.65,132.61,19.17349691]
[1744868233092,7.53870935,132.65,132.62,19.17349691]
[1744868233300,7.53870935,132.65,132.59,18.64964886]
[1744868233301,7.53870935,132.65,132.61,19.17349691]
[1744868234085,107.53821089,132.66,132.62,19.17349691]
[1744868234990,24.73821089,132.66,132.62,19.17349691]
[1744868236884,43.9117078,132.66,132.61,19.17349691]
[1744868237695,19.17349691,132.65,132.59,18.64964886]
[1744868237990,19.17349691,132.63,132.58,19.17349691]
[1744868238701,19.17349691,132.62,132.57,26.0]
[1744868238996,25.83179691,132.61,132.54,17.263]
[1744868239199,18.67009882,132.61,132.56,12.01179882]
[1744868239693,19.55327694,132.6,132.55,12.01179882]
[1744868239885,12.01179882,132.59,132.54,12.07479882]
[1744868240079,12.01179882,132.59,132.55,12.01179882]
[1744868240281,19.55327694,132.6,132.55,12.01179882]
[1744868240486,12.01179882,132.59,132.54,0.063]
[1744868240682,12.01179882,132.58,132.54,12.07479882]
[1744868241400,19.22591546,132.58,132.54,19.28891546]
[1744868241877,7.54318473,132.57,132.54,19.28891546]
[1744868244212,7.54318473,132.57,132.54,0.063]
[1744868245275,7.54318473,132.57,132.54,19.28891546]
[1744868246091,26.76910019,132.57,132.54,0.063]
[1744868246887,19.22591546,132.56,132.54,0.063]
[1744868247388,7.54318473,132.57,132.55,19.22591546]
[1744868247583,7.54318473,132.57,132.54,19.28891546]
[1744868250005,26.76910019,132.57,132.54,0.063]
[1744868250383,7.54318473,132.57,132.54,0.063]
[1744868250782,19.22591546,132.56,132.54,0.063]
[1744868251793,19.22591546,132.55,132.54,0.063]
[1744868252385,19.22591546,132.56,132.54,0.063]
[1744868253300,7.54432289,132.55,132.54,0.063]
[1744868257610,7.54381287,132.56,132.54,0.063]
[1744868257847,90.34338025,132.57,132.54,19.28891546]
[1744868258227,90.34338025,132.57,132.54,0.063]
[1744868258527,109.56929571,132.57,132.54,0.063]
[1744868260594,19.22591546,132.56,132.54,0.063]
[1744868260806,109.56929571,132.57,132.54,0.063]
[1744868261220,102.36160437,132.57,132.54,0.063]
[1744868261531,12.01822412,132.56,132.54,0.063]
[1744868262834,12.01822412,132.55,132.54,0.063]
[1744868263008,12.01822412,132.56,132.54,0.063]
[1744868263920,94.81822412,132.57,132.54,0.063]
[1744868264117,12.01822412,132.55,132.54,0.063]
[1744868264322,19.56219975,132.56,132.54,0.063]
[1744868268939,90.34106325,132.61,132.55,12.01822412]
[1744868269146,28.73822412,132.62,132.58,12.01822412]
[1744868269147,36.27876286,132.62,132.58,12.01822412]
[1744868269345,24.26053874,132.62,132.59,12.01822412]
[1744868270029,12.01822412,132.61,132.57,12.01822412]
[1744868270429,12.01822412,132.61,132.56,12.01822412]
[1744868271548,7.54147812,132.6,132.57,12.01822412]
[1744868271847,7.54109309,132.61,132.59,12.01822412]
[1744868272544,7.54109309,132.61,132.57,12.01822412]
[1744868273448,7.54109309,132.61,132.56,12.01822412]
[1744868273449,12.01822412,132.6,132.56,12.01822412]
[1744868274019,12.01822412,132.59,132.55,12.01822412]
[1744868274546,94.81822412,132.6,132.55,12.01822412]
[1744868274737,82.8,132.6,132.57,12.01822412]
[1744868275341,7.54204691,132.59,132.57,12.01822412]
[1744868276860,7.54204691,132.59,132.56,12.01822412]
[1744868277953,19.56027103,132.59,132.54,0.063]
[1744868278151,12.01822412,132.58,132.54,0.063]
[1744868278449,12.01822412,132.58,132.54,12.08122412]
[1744868278751,38.4153883,132.59,132.54,12.08122412]
[1744868279153,19.56027103,132.59,132.55,12.01822412]
[1744868279357,118.37179265,132.62,132.57,12.01822412]
[1744868279358,7.54147812,132.6,132.57,12.01822412]
[1744868279933,7.54147812,132.6,132.58,12.01822412]
[1744868280331,7.54090943,132.61,132.57,12.01822412]
[1744868280535,7.54090943,132.61,132.58,12.01822412]
[1744868280734,7.54090943,132.61,132.59,12.01822412]
[1744868280950,7.54090943,132.61,132.58,12.01822412]
[1744868283766,107.06056216,132.62,132.58,12.01822412]
[1744868283957,99.52,132.62,132.59,12.01822412]
[1744868284251,107.06048892,132.62,132.59,12.01822412]
[1744868284451,90.34048892,132.62,132.59,12.01822412]
[1744868284743,90.34048892,132.62,132.58,12.01822412]
[1744868285354,12.01822412,132.61,132.54,33.6078459]
[1744868285647,12.01822412,132.61,132.57,12.01822412]
[1744868286156,7.54147812,132.6,132.57,12.01822412]
[1744868287234,7.54090943,132.61,132.57,12.01822412]
[1744868289852,7.54090943,132.61,132.58,12.01822412]
[1744868290159,7.54056606,132.62,132.59,12.01822412]
[1744868290880,7.54056606,132.62,132.58,12.01822412]
[1744868291993,7.54056606,132.62,132.56,26.19318594]
[1744868292154,7.54056606,132.62,132.59,12.01822412]
[1744868292355,19.55879018,132.62,132.57,12.01822412]
[1744868293252,12.01822412,132.61,132.54,0.063]
[1744868293455,12.01822412,132.61,132.56,12.01822412]
[1744868294783,7.54147812,132.6,132.57,12.01822412]
[1744868294965,7.54147812,132.6,132.58,12.01822412]
[1744868295784,82.8,132.62,132.58,12.01822412]
[1744868296878,102.35872634,132.62,132.58,12.01822412]
[1744868297076,102.35872634,132.62,132.57,12.01822412]
[1744868298079,19.55872634,132.62,132.57,12.01822412]
[1744868298883,12.01822412,132.61,132.56,12.01822412]
[1744868299984,7.54147812,132.6,132.56,12.01822412]
[1744868302573,19.55970224,132.6,132.56,12.01822412]
[1744868302762,12.01822412,132.58,132.54,0.063]
[1744868302957,12.01822412,132.57,132.54,0.063]
[1744868303162,7.69155974,132.57,132.54,0.063]
[1744868303581,7.69155974,132.58,132.54,0.063]
[1744868303787,82.8,132.59,132.54,7.75455974]
[1744868304081,90.49155974,132.59,132.54,7.75455974]
[1744868304266,7.69155974,132.58,132.54,7.75455974]
[1744868304466,7.54318473,132.57,132.54,7.75455974]
[1744868304674,7.54318473,132.57,132.54,0.063]
[1744868307101,15.23474447,132.57,132.54,0.063]
[1744868307691,26.40114656,132.57,132.54,0.063]
[1744868307894,7.69155974,132.56,132.54,0.063]
[1744868309071,7.54432289,132.55,132.54,0.063]
[1744868309869,15.23588263,132.55,132.54,0.063]
[1744868310591,15.23531351,132.56,132.54,0.063]
[1744868314084,7.69155974,132.55,132.54,0.063]
[1744868315700,15.23588263,132.55,132.54,0.063]
[1744868319198,7.54432289,132.55,132.54,0.063]
[1744868322798,82.8,132.56,132.54,7.75455974]
[1744868322975,7.54090943,132.61,132.55,7.69155974]
[1744868323298,7.54090943,132.61,132.59,7.69155974]
[1744868324507,7.54034082,132.62,132.59,7.69155974]
[1744868325424,7.54034082,132.62,132.6,7.69155974]
[1744868326402,7.53977229,132.63,132.6,7.69155974]
[1744868326703,90.33931008,132.64,132.62,7.69155974]
[1744868326879,7.53931008,132.64,132.62,7.69155974]
[1744868327200,23.43883548,132.65,132.62,7.69155974]
[1744868329206,31.13039522,132.65,132.58,7.54261577]
[1744868329399,31.13039522,132.65,132.6,7.69155974]
[1744868330208,23.43883548,132.65,132.61,7.69155974]
[1744868330612,31.13039522,132.65,132.61,7.69155974]
[1744868331807,31.13039522,132.65,132.6,7.69155974]
[1744868332002,23.43883548,132.65,132.61,7.69155974]
[1744868332990,15.9,132.65,132.63,7.69155974]
[1744868333192,15.9,132.65,132.64,7.69155974]
[1744868333411,0.03,132.66,132.64,7.69155974]
[1744868333922,0.03,132.66,132.65,7.69155974]
[1744868335005,0.03,132.66,132.65,15.23019524]
[1744868336507,0.03,132.66,132.65,7.69155974]
[1744868337318,0.03,132.66,132.65,11.99515355]
[1744868338320,0.03,132.66,132.62,7.7164]
[1744868338621,0.03,132.66,132.65,11.99515355]
[1744868339613,0.03,132.66,132.64,11.99515355]
[1744868340502,0.03,132.66,132.62,15.2566154]
[1744868340820,0.03,132.66,132.64,11.99515355]
[1744868341209,0.03,132.66,132.65,11.99515355]
[1744868342934,0.03,132.66,132.64,11.99515355]
[1744868344930,0.03,132.66,132.65,11.99515355]
[1744868345824,0.03,132.66,132.63,11.99515355]
[1744868346433,0.03,132.66,132.64,11.99515355]
[1744868347526,0.03,132.66,132.63,11.99515355]
[1744868348338,0.03,132.66,132.61,49.44073265]
[1744868348629,0.03,132.66,132.64,11.99515355]
[1744868349504,0.03,132.66,132.65,11.99515355]
[1744868354638,0.03,132.66,132.61,15.9]
[1744868354819,12.02515355,132.66,132.62,11.99515355]
[1744868355138,0.03,132.66,132.63,11.99515355]
[1744868355459,0.03,132.66,132.62,11.99515355]
[1744868355738,7.56806723,132.66,132.62,11.99515355]
[1744868356037,19.56322078,132.66,132.61,11.99515355]
[1744868356416,19.56322078,132.66,132.62,11.99515355]
[1744868356813,0.03,132.66,132.64,11.99515355]
[1744868357021,0.03,132.66,132.65,11.99515355]
[1744868359244,0.03,132.66,132.65,7.67582668]
[1744868359748,0.03,132.66,132.65,64.3791334]
[1744868359949,0.03,132.66,132.65,83.02878226]
[1744868361033,0.03,132.66,132.65,84.59878226]
[1744868361233,0.03,132.66,132.65,92.13741776]
[1744868361532,0.03,132.67,132.66,18.64964886]
[1744868361732,0.03,132.67,132.66,57.02878226]
[1744868362226,0.03,132.74,132.73,44.64964886]
[1744868362425,0.03,132.8,132.74,18.64964886]
[1744868362628,0.03,132.8,132.79,7.67582668]
[1744868362858,0.03,132.8,132.79,33.67582668]
[1744868363358,0.03,132.8,132.79,41.20651423]
[1744868364437,0.03,132.8,132.79,56.86651423]
[1744868364745,0.03,132.8,132.79,33.67582668]
[1744868364938,0.03,132.8,132.79,49.33582668]
[1744868365252,0.03,132.8,132.79,61.15600277]
[1744868366146,0.03,132.8,132.79,79.80565163]
[1744868366838,0.03,132.8,132.79,61.15600277]
[1744868368264,0.03,132.8,132.79,53.62531522]
[1744868368461,0.03,132.8,132.76,26.0]
[1744868368751,0.03,132.8,132.78,11.96531522]
[1744868368948,0.03,132.8,132.75,7.53295668]
[1744868369156,0.03,132.8,132.75,33.53295668]
[1744868369452,0.03,132.8,132.79,11.96531522]
[1744868371547,0.03,132.8,132.76,33.5318489]
[1744868371749,0.03,132.8,132.79,11.96531522]
[1744868372961,0.03,132.8,132.79,72.55496408]
[1744868373561,0.03,132.8,132.79,80.08565163]
[1744868373941,0.03,132.86,132.8,18.64964886]
[1744868374256,0.03,132.86,132.85,11.96531522]
[1744868374845,0.03,132.86,132.84,11.96531522]
[1744868375240,0.03,132.86,132.85,11.96531522]
[1744868377133,0.03,132.86,132.82,18.64964886]
[1744868377656,0.03,132.86,132.85,11.96531522]
[1744868379443,0.03,132.86,132.85,19.49260163]
[1744868380158,0.03,132.86,132.85,38.42657363]
[1744868380349,0.2029173,132.93,132.85,64.42657363]
[1744868380542,0.2029173,132.93,132.89,11.96531522]
[1744868380958,0.2029173,132.93,132.9,11.96531522]
[1744868381951,0.2029173,132.93,132.87,18.64964886]
[1744868382462,0.2029173,132.93,132.9,11.96531522]
[1744868382666,7.72570803,132.93,132.9,11.96531522]
[1744868382866,11.96531522,132.92,132.88,11.96531522]
[1744868383160,19.69102325,132.93,132.89,11.96531522]
[1744868383965,19.69102325,132.93,132.85,26.0]
[1744868384150,19.69102325,132.93,132.89,11.96531522]
[1744868384463,11.96531522,132.91,132.86,11.96531522]
[1744868384666,109.33259887,132.93,132.86,11.96531522]
[1744868384852,11.96531522,132.91,132.86,11.96531522]
[1744868385053,11.96531522,132.9,132.86,11.96531522]
[1744868385367,11.96531522,132.9,132.85,11.96531522]
[1744868385537,11.96531522,132.89,132.85,11.96531522]
[1744868385742,1.5181,132.9,132.85,11.96531522]
[1744868385965,11.96531522,132.89,132.82,52.17847747]
[1744868386152,11.96531522,132.89,132.85,11.96531522]
[1744868386352,19.49033591,132.89,132.85,11.96531522]
[1744868386751,7.52502069,132.89,132.85,11.96531522]
[1744868387057,19.49033591,132.89,132.85,11.96531522]
[1744868387262,9.04271349,132.9,132.85,37.96531522]
[1744868387558,11.96531522,132.89,132.85,11.96531522]
[1744868388354,19.4914686,132.87,132.82,26.0]
[1744868388556,19.4914686,132.87,132.83,11.96531522]
[1744868388869,7.52615338,132.87,132.83,11.96531522]
[1744868389083,7.52615338,132.87,132.84,11.96531522]
[1744868389748,7.52615338,132.87,132.85,11.96531522]
[1744868390553,0.03,132.99,132.87,0.14216157]
[1744868390752,0.03,132.99,132.98,11.96531522]
[1744868390957,0.03,132.99,132.96,15.94]
[1744868391164,0.03,132.99,132.96,27.90531522]
[1744868391367,0.03,132.99,132.98,11.96531522]
[1744868393271,0.03,132.99,132.98,19.09292176]
[1744868394874,0.03,132.99,132.93,7.52263431]
[1744868395079,19.09292176,132.98,132.9,35.01292176]
[1744868395250,19.09292176,132.97,132.92,19.09292176]
[1744868396275,19.09292176,132.96,132.88,29.51901686]
[1744868396477,19.09292176,132.96,132.91,19.09292176]
[1744868396682,22.3179,132.98,132.89,19.09292176]
[1744868396683,19.09292176,132.94,132.89,19.09292176]
[1744868396973,19.09292176,132.93,132.88,19.09292176]
[1744868397443,19.09292176,132.92,132.85,18.64964886]
[1744868397649,15.92,132.92,132.85,19.09292176]
[1744868397876,15.92,132.92,132.87,19.09292176]
[1744868398078,15.92,132.92,132.84,19.09292176]
[1744868398263,35.01292176,132.92,132.87,19.09292176]
[1744868398460,19.09292176,132.91,132.82,18.64964886]
[1744868398665,7.52502069,132.89,132.86,19.09292176]
[1744868398967,7.52456791,132.9,132.86,19.09292176]
[1744868399282,7.52456791,132.9,132.87,19.09292176]
[1744868400156,35.01292176,132.92,132.87,19.09292176]
[1744868400157,7.52388834,132.91,132.87,19.09292176]
[1744868400358,7.52388834,132.91,132.88,19.09292176]
[1744868401047,15.92,132.92,132.88,19.09292176]
[1744868401275,26.6161831,132.93,132.88,19.09292176]
[1744868401656,26.6161831,132.93,132.89,19.09292176]
[1744868401982,26.6161831,132.93,132.88,19.09292176]
[1744868402182,19.09292176,132.92,132.88,19.09292176]
[1744868402351,19.09292176,132.92,132.87,19.09292176]
[1744868402552,19.09292176,132.91,132.86,19.09292176]
[1744868402761,19.09292176,132.9,132.85,19.09292176]
[1744868402959,19.09292176,132.91,132.86,19.09292176]
[1744868403284,19.09292176,132.93,132.88,19.09292176]
[1744868403464,19.09292176,132.92,132.88,19.09292176]
[1744868404578,19.09292176,132.93,132.88,19.09292176]
[1744868405758,7.52332229,132.92,132.88,19.09292176]
[1744868405955,16.54,132.96,132.91,19.09292176]
[1744868406165,16.54,132.96,132.92,19.09292176]
[1744868406366,7.52162467,132.95,132.92,19.09292176]
[1744868407989,1.5958,132.99,132.94,19.09292176]
[1744868408177,0.03,132.99,132.97,19.09292176]
[1744868408356,26.64243758,132.99,132.95,19.09292176]
[1744868408677,7.54951582,132.99,132.95,19.09292176]
[1744868409268,0.03,132.99,132.97,19.09292176]
[1744868409471,0.03,132.99,132.98,19.09292176]
[1744868409774,0.03,132.99,132.96,19.09292176]
[1744868410464,0.03,132.99,132.97,19.09292176]
[1744868410665,0.03,132.99,132.98,19.09292176]
[1744868412079,0.03,132.99,132.95,7.52143411]
[1744868412080,0.03,132.99,132.97,19.09292176]
[1744868412258,0.03,132.99,132.96,19.09292176]
[1744868412454,0.03,132.99,132.97,19.09292176]
[1744868413664,0.03,132.99,132.98,19.09292176]
[1744868416082,0.03,132.99,132.98,26.61284956]
[1744868419579,0.03,132.99,132.98,45.26249842]
[1744868420089,0.03,132.99,132.97,7.52032274]
[1744868420277,0.03,132.99,132.98,19.09292176]
[1744868421185,0.03,132.99,132.97,19.09292176]
[1744868421390,0.03,132.99,132.95,19.09292176]
[1744868422501,0.03,132.99,132.98,19.09292176]
[1744868424294,0.03,132.99,132.96,19.09292176]
[1744868425691,0.03,132.99,132.97,19.09292176]
[1744868427598,0.03,132.99,132.98,19.09292176]
[1744868432277,0.03,132.99,132.95,18.64964886]
[1744868432596,19.12292176,132.99,132.94,19.09292176]
[1744868433603,26.64278801,132.99,132.94,19.09292176]
[1744868434175,26.64278801,132.99,132.95,19.09292176]
[1744868434702,7.54986625,132.99,132.95,19.09292176]
[1744868436113,26.64278801,132.99,132.94,19.09292176]
[1744868437008,26.64278801,132.99,132.95,19.09292176]
[1744868437180,19.49158436,132.99,132.95,11.94171811]
[1744868437773,19.49158436,132.99,132.92,7.5231424]
[1744868438032,11.94171811,132.97,132.9,16.34]
[1744868438304,11.94171811,132.97,132.93,11.94171811]
[1744868438498,11.94171811,132.98,132.93,11.94171811]
[1744868438800,11.94171811,132.97,132.92,11.94171811]
[1744868439189,7.52105896,132.96,132.92,11.94171811]
[1744868439500,19.46277707,132.96,132.92,11.94171811]
[1744868439681,11.94171811,132.94,132.88,0.063]
[1744868440022,11.94171811,132.92,132.88,0.063]
[1744868440181,54.60542448,132.96,132.88,0.063]
[1744868440182,11.94171811,132.91,132.88,0.063]
[1744868441307,7.52445447,132.9,132.88,0.063]
[1744868441479,82.83,132.99,132.9,18.64964886]
[1744868441820,19.15955138,132.99,132.95,19.12955138]
[1744868442319,19.15955138,132.99,132.94,19.12955138]
[1744868442619,7.5199278,132.98,132.94,19.12955138]
[1744868442805,19.12955138,132.98,132.93,19.12955138]
[1744868443004,19.12955138,132.97,132.93,19.12955138]
[1744868443308,19.12955138,132.98,132.93,19.12955138]
[1744868444427,7.52049334,132.97,132.94,19.12955138]
[1744868445125,7.52049334,132.97,132.9,26.65386207]
[1744868445329,7.52049334,132.97,132.94,19.12955138]
[1744868445617,7.54936235,132.99,132.91,18.64964886]
[1744868445793,7.54936235,132.99,132.95,19.12955138]
[1744868445794,26.67891373,132.99,132.95,19.12955138]
[1744868446629,26.67891373,132.99,132.94,19.12955138]
[1744868447316,19.12955138,132.98,132.93,19.12955138]
[1744868447506,19.12955138,132.96,132.92,19.12955138]
[1744868447717,19.12955138,132.95,132.91,19.12955138]
[1744868447899,19.12955138,132.95,132.9,19.12955138]
[1744868449434,7.52219046,132.94,132.9,19.12955138]
[1744868449730,7.52219046,132.94,132.91,19.12955138]
[1744868450831,7.52219046,132.94,132.9,19.12955138]
[1744868451001,19.12955138,132.93,132.89,19.12955138]
[1744868451425,19.12955138,132.93,132.88,19.19255138]
[1744868451919,99.14,132.96,132.89,19.12955138]
[1744868452126,19.12955138,132.94,132.89,19.12955138]
[1744868452325,19.12955138,132.93,132.89,19.12955138]
[1744868453051,19.12955138,132.94,132.89,19.12955138]
[1744868454031,26.65195576,132.94,132.9,19.12955138]
[1744868454329,106.66149006,132.96,132.92,19.12955138]
[1744868454530,19.12955138,132.95,132.91,19.12955138]
[1744868454721,19.12955138,132.95,132.88,7.58857836]
[1744868454927,19.12955138,132.95,132.9,19.12955138]
[1744868455236,19.12955138,132.95,132.91,19.12955138]
[1744868455619,7.52195547,132.95,132.91,19.12955138]
[1744868455818,7.52195547,132.95,132.92,19.12955138]
[1744868456729,23.86126927,132.96,132.92,19.12955138]
[1744868457032,7.52060182,132.97,132.94,19.12955138]
[1744868457223,7.52060182,132.97,132.95,19.12955138]
[1744868457533,7.52060182,132.97,132.94,19.12955138]
[1744868457905,7.52060182,132.97,132.93,19.12955138]
[1744868458435,7.52060182,132.97,132.94,19.12955138]
[1744868459620,7.52060182,132.97,132.93,19.12955138]
[1744868459835,7.54936235,132.99,132.93,19.12955138]
[1744868460042,19.12955138,132.98,132.93,19.12955138]
[1744868460720,19.12955138,132.98,132.94,19.12955138]
[1744868460925,26.64997948,132.98,132.94,19.12955138]
[1744868461120,26.64997948,132.98,132.93,19.12955138]
[1744868462035,7.5204281,132.98,132.93,19.12955138]
[1744868462236,26.64997948,132.98,132.93,19.12955138]
[1744868463135,0.03,132.99,132.95,11.94238505]
[1744868463320,0.03,132.99,132.98,11.94238505]
[1744868463919,0.03,132.99,132.98,30.59203391]
[1744868464442,0.03,132.99,132.98,36.01250979]
[1744868465149,0.03,132.99,132.98,5.42047588]
[1744868465517,0.03,132.99,132.98,43.16456044]
[1744868465716,0.03,132.99,132.98,50.68448824]
[1744868468321,0.03,132.99,132.98,53.39360511]
[1744868469549,0.03,132.99,132.98,50.68448824]
[1744868470939,2.6617128,133.0,132.99,18.79181043]
[1744868471127,2.6617128,133.0,132.99,43.44888358]
[1744868471646,2.6617128,133.0,132.99,50.96824593]
[1744868473252,2.6617128,133.0,132.99,57.09104593]
[1744868473423,8.1581,133.11,133.03,18.64964886]
[1744868473758,1.5653,133.16,133.08,19.0944357]
[1744868474056,1.5653,133.16,133.12,19.0944357]
[1744868474351,11.82125183,133.2,133.12,38.0284077]
[1744868474529,30.44568753,133.2,133.12,37.74408456]
[1744868474723,30.44568753,133.2,133.16,19.0944357]
[1744868474922,8.2076,133.21,133.17,19.0944357]
[1744868475152,47.15955762,133.23,133.2,19.0944357]
[1744868475324,7.50694392,133.21,133.16,26.0]
[1744868475528,19.0944357,133.22,133.16,26.0]
[1744868475529,26.60090363,133.22,133.17,19.0944357]
[1744868475931,26.60090363,133.22,133.18,19.0944357]
[1744868476457,51.06660362,133.23,133.21,19.0944357]
[1744868476628,51.06660362,133.23,133.22,19.0944357]
[1744868477328,51.06660362,133.23,133.22,38.0284077]
[1744868477539,51.06660362,133.23,133.22,37.74408456]
[1744868478033,51.06660362,133.23,133.22,45.53478812]
[1744868478360,23.57759133,133.25,133.24,44.64964886]
[1744868478549,23.57759133,133.25,133.24,82.83852026]
[1744868478858,43.51384759,133.33,133.25,18.933972]
[1744868479058,36.01359071,133.33,133.31,19.0944357]
[1744868479445,36.01359071,133.33,133.29,0.14216157]
[1744868479645,7.49862767,133.36,133.32,19.0944357]
[1744868479849,19.0944357,133.37,133.33,19.0944357]
[1744868480062,19.0944357,133.38,133.33,19.0944357]